[Event "360 One Wealth GP-3 2024"]
[Site "Mumbai"]
[Date "2024.02.06"]
[Round "2.1"]
[White "Kulkarni, Vikramaditya"]
[Black "Reyaansh Venkat"]
[Result "1/2-1/2"]
[ECO "B31"]
[WhiteElo "2193"]
[BlackElo "1201"]
[Annotator "RC"]
[PlyCount "153"]
[EventDate "2024.02.04"]
[EventType "swiss"]
[EventCountry "IND"]
[SourceTitle "playchess.com"]
[Source "ChessBase"]
[SourceQuality "1"]
[TimeControl "5400+30"]

1. e4 {[%emt 0:03:51]} c5 {[%emt 0:00:18]} 2. Be2 {[%emt 0:00:21]} Nc6 {[%emt 0:00:43]} 3. d3 {[%emt 0:00:37]} g6 {[%emt 0:00:19]} 4. h4 {[%emt 0:00:28]} h5 {[%emt 0:04:02]} 5. f4 {[%emt 0:00:02]} Bg7 {[%emt 0:03:42]} 6. f5 {[%emt 0:00:40]} Nf6 {[%emt 0:03:04]} 7. fxg6 {[%emt 0:00:19]} fxg6 {[%emt 0:00:06]} 8. Nh3 {[%emt 0:00:36]} O-O {[%emt 0:05:03]} 9. Nc3 {[%emt 0:02:23]} d6 {[%emt 0:05:25]} 10. Bg5 {[%emt 0:01:45]} Bg4 {[%emt 0:02:44]} 11. Nf4 {[%emt 0:01:14]} Qe8 {[%emt 0:04:08]} 12. Bxf6 {[%emt 0:07:17]} Bxe2 {[%emt 0:06:06]} 13. Ncxe2 {[%emt 0:01:15]} Bxf6 {[%emt 0:01:37]} 14. Ne6 {[%emt 0:03:34]} Qd7 {[%emt 0:06:17]} 15. Nxf8 {[%emt 0:00:09]} Rxf8 {[%emt 0:00:35]} 16. O-O {[%emt 0:06:30]} Qg4 {[%emt 0:04:17]} 17. c3 {[%emt 0:00:19]} Qxh4 {[%emt 0:02:53]} 18. Qe1 {[%emt 0:00:22]} Qg4 {[%emt 0:06:47]} 19. Rf3 {[%emt 0:28:19]} Ne5 {[%emt 0:05:57]} 20. Rg3 {[%emt 0:11:49]} Qh4 {[%emt 0:10:04]} 21. d4 {[%emt 0:12:07]} Ng4 {[%emt 0:03:47]} 22. Rh3 {[%emt 0:00:26]} Qg5 {[%emt 0:03:35]} 23. Rd1 {[%emt 0:03:37]} Ne3 {[%emt 0:07:00]} 24. Rg3 {[%emt 0:00:20]} Qh6 {[%emt 0:01:28]} 25. Nf4 {[%emt 0:01:29]} Bh4 {[%emt 0:02:41]} 26. Rxg6+ {[%emt 0:00:37]} Qxg6 {[%emt 0:00:33]} 27. Nxg6 {[%emt 0:00:11]} Bf2+ {[%emt 0:03:37]} 28. Qxf2 {[%emt 0:06:37]} Rxf2 {[%emt 0:00:13]} 29. Kxf2 {[%emt 0:05:56]} Nxd1+ {[%emt 0:00:04]} 30. Ke2 {[%emt 0:00:11]} Kf7 {[%emt 0:04:40]} 31. dxc5 {[%emt 0:01:37]} Nxb2 {[%emt 0:01:01]} 32. cxd6 {[%emt 0:00:08]} exd6 {[%emt 0:00:36]} 33. Nf4 {[%emt 0:00:02]} Na4 {[%emt 0:00:26]} 34. Kd3 {[%emt 0:01:04]} h4 {[%emt 0:00:28]} 35. Kd4 {[%emt 0:00:17]} Kf6 {[%emt 0:02:30]} 36. Nd3 {[%emt 0:01:12]} Nb6 {[%emt 0:00:53]} 37. c4 {[%emt 0:00:21]} Ke6 {[%emt 0:00:23]} 38. Ne1 {[%emt 0:00:17]} Nd7 {[%emt 0:00:20]} 39. Nf3 {[%emt 0:00:02]} Ne5 {[%emt 0:00:40]} 40. Nxh4 {[%emt 0:00:04]} Nc6+ {[%emt 0:00:13]} 41. Kc3 {[%emt 0:00:36]} Ke5 {[%emt 0:00:11]} 42. Nf5 {[%emt 0:00:07]} b6 {[%emt 0:00:49]} 43. a4 {[%emt 0:00:28]} Kxe4 {[%emt 0:00:15]} 44. Nxd6+ {[%emt 0:00:03]} Kf4 {[%emt 0:00:57]} 45. Kd3 {[%emt 0:01:22]} Kg3 {[%emt 0:00:25]} 46. Ke4 {[%emt 0:00:13]} Kxg2 {[%emt 0:00:02]} 47. Nc8 {[%emt 0:00:16]} Kf2 {[%emt 0:00:40]} 48. Kd5 {[%emt 0:00:03]} Nb4+ {[%emt 0:00:27]} 49. Kd6 {[%emt 0:00:28]} Ke3 {[%emt 0:00:19]} 50. Nxa7 {[%emt 0:00:10]} Kd4 {[%emt 0:00:50]} 51. Nc8 {[%emt 0:00:37]} Kxc4 {[%emt 0:00:21]} 52. Nxb6+ {[%emt 0:00:03]} Kb3 {[%emt 0:00:12]} 53. Kc5 {[%emt 0:02:07]} Na6+ {[%emt 0:00:45]} 54. Kb5 {[%emt 0:00:01]} Nc7+ {[%emt 0:00:12]} 55. Kc6 {[%emt 0:00:23]} Na6 {[%emt 0:00:16]} 56. Kb5 {[%emt 0:00:02]} Nc7+ {[%emt 0:00:06]} 57. Ka5 {[%emt 0:00:20]} Ka3 {[%emt 0:01:39]} 58. Nc4+ {[%emt 0:01:25]} Kb3 {[%emt 0:00:04]} 59. Nd2+ {[%emt 0:01:13]} Kc3 {[%emt 0:00:25]} 60. Ne4+ {[%emt 0:00:26]} Kc4 {[%emt 0:00:10]} 61. Nf6 {[%emt 0:01:11]} Kc5 {[%emt 0:00:23]} 62. Nd7+ {[%emt 0:00:27]} Kc6 {[%emt 0:00:08]} 63. Ne5+ {[%emt 0:00:11]} Kb7 {[%emt 0:00:25]} 64. Kb4 {[%emt 0:00:16]} Nd5+ {[%emt 0:00:17]} 65. Kc5 {[%emt 0:00:02]} Nc3 {[%emt 0:00:47]} 66. a5 {[%emt 0:00:02]} Ka6 {[%emt 0:00:32]} 67. Nc6 {[%emt 0:00:03]} Ne4+ {[%emt 0:00:16]} 68. Kb4 {[%emt 0:00:02]} Nd6 {[%emt 0:00:44]} 69. Nb8+ {[%emt 0:00:38]} Ka7 {[%emt 0:00:30]} 70. Nc6+ {[%emt 0:00:09]} Ka6 {[%emt 0:00:03]} 71. Ka4 {[%emt 0:00:56]} Nb7 {[%emt 0:00:38]} 72. Nb4+ {[%emt 0:00:18]} Ka7 {[%emt 0:00:04]} 73. Nc6+ {[%emt 0:00:07]} Ka6 {[%emt 0:00:06]} 74. Nb4+ {[%emt 0:00:02]} Ka7 {[%emt 0:00:04]} 75. a6 {[%emt 0:00:13]} Nc5+ {[%emt 0:00:03]} 76. Kb5 {[%emt 0:00:07]} Nxa6 {[%emt 0:00:06]} 77. Nxa6 {[%emt 0:00:03]} 1/2-1/2

[Event "360 One Wealth GP-3 2024"]
[Site "Mumbai"]
[Date "2024.02.06"]
[Round "2.2"]
[White "Mishra Rahul"]
[Black "Raghav, Srivathsav V"]
[Result "0-1"]
[ECO "A16"]
[WhiteElo "1227"]
[BlackElo "2017"]
[Annotator "RC"]
[PlyCount "118"]
[EventDate "2024.02.04"]
[EventType "swiss"]
[EventCountry "IND"]
[SourceTitle "playchess.com"]
[Source "ChessBase"]
[SourceQuality "1"]
[TimeControl "5400+30"]

1. c4 {[%emt 0:00:14]} Nf6 {[%emt 0:21:33]} 2. Nc3 {[%emt 0:02:26]} g6 {[%emt 0:00:06]} 3. g3 {[%emt 0:00:14]} Bg7 {[%emt 0:00:05]} 4. Bg2 {[%emt 0:00:09]} O-O {[%emt 0:00:06]} 5. Nf3 {[%emt 0:00:38]} c5 {[%emt 0:01:37]} 6. O-O {[%emt 0:00:26]} d6 {[%emt 0:00:23]} 7. h3 {[%emt 0:00:25]} Nc6 {[%emt 0:00:15]} 8. e3 {[%emt 0:00:37]} Bd7 {[%emt 0:00:14]} 9. a3 {[%emt 0:00:23]} a6 {[%emt 0:00:11]} 10. d4 {[%emt 0:01:23]} Rb8 {[%emt 0:05:01]} 11. Re1 {[%emt 0:05:30]} b5 {[%emt 0:07:22]} 12. Qe2 {[%emt 0:09:36]} bxc4 {[%emt 0:00:04]} 13. Qxc4 {[%emt 0:01:11]} Qc8 {[%emt 0:01:42]} 14. dxc5 {[%emt 0:07:52]} Na5 {[%emt 0:01:24]} 15. Qh4 {[%emt 0:00:56]} Nb3 {[%emt 0:01:10]} 16. Rb1 {[%emt 0:05:41]} Nxc5 {[%emt 0:14:28]} 17. e4 {[%emt 0:02:01]} Re8 {[%emt 0:01:20]} 18. Bh6 {[%emt 0:00:24]} Nd3 {[%emt 0:00:55]} 19. Re2 {[%emt 0:09:43]} Bh8 {[%emt 0:04:17]} 20. Nd1 {[%emt 0:04:33]} Ba4 {[%emt 0:02:33]} 21. Nc3 {[%emt 0:07:25]} Bd7 {[%emt 0:03:37]} 22. Nd1 {[%emt 0:00:21]} a5 {[%emt 0:02:08]} 23. Rd2 {[%emt 0:02:12]} Nc5 {[%emt 0:01:16]} 24. Nc3 {[%emt 0:01:48]} a4 {[%emt 0:08:12]} 25. e5 {[%emt 0:00:57]} dxe5 {[%emt 0:02:38]} 26. Nxe5 {[%emt 0:00:17]} Bf5 {[%emt 0:00:18]} 27. Rbd1 {[%emt 0:01:19]} Nfe4 {[%emt 0:09:56]} 28. Nxe4 {[%emt 0:12:03]} Nxe4 {[%emt 0:00:57]} 29. Bxe4 {[%emt 0:07:35]} Bxe5 {[%emt 0:00:43]} 30. Bxf5 {[%emt 0:00:55]} Qxf5 {[%emt 0:00:02]} 31. Qxa4 {[%emt 0:01:38]} Qxh3 {[%emt 0:00:29]} 32. Bf4 {[%emt 0:00:14]} Qg4 {[%emt 0:01:04]} 33. f3 {[%emt 0:04:13]} Qxf3 {[%emt 0:02:03]} 34. Rf1 {[%emt 0:07:27]} Qg4 {[%emt 0:00:48]} 35. Qe4 {[%emt 0:01:21]} Bxf4 {[%emt 0:01:00]} 36. Qxf4 {[%emt 0:00:26]} Qxf4 {[%emt 0:00:11]} 37. Rxf4 {[%emt 0:00:08]} Rb3 {[%emt 0:00:02]} 38. Kg2 {[%emt 0:00:57]} Reb8 {[%emt 0:00:22]} 39. Rff2 {[%emt 0:01:03]} h5 {[%emt 0:00:37]} 40. a4 {[%emt 0:00:50]} R8b4 {[%emt 0:00:09]} 41. a5 {[%emt 0:00:38]} Rb7 {[%emt 0:01:08]} 42. Rc2 {[%emt 0:02:13]} Ra7 {[%emt 0:01:49]} 43. Rc5 {[%emt 0:00:41]} Rb4 {[%emt 0:00:41]} 44. Re2 {[%emt 0:01:15]} Kg7 {[%emt 0:00:36]} 45. Kh3 {[%emt 0:02:17]} e6 {[%emt 0:00:19]} 46. Kg2 {[%emt 0:01:00]} Kf6 {[%emt 0:00:38]} 47. Rf2+ {[%emt 0:00:14]} Ke7 {[%emt 0:00:22]} 48. Rfc2 {[%emt 0:00:27]} Kd7 {[%emt 0:01:05]} 49. Rd2+ {[%emt 0:00:12]} Ke7 {[%emt 0:00:13]} 50. Rdc2 {[%emt 0:00:01]} Kd6 {[%emt 0:01:53]} 51. Rc6+ {[%emt 0:01:11]} Kd7 {[%emt 0:00:05]} 52. R6c5 {[%emt 0:01:19]} Ra4 {[%emt 0:00:18]} 53. Rd2+ {[%emt 0:01:30]} Ke7 {[%emt 0:00:06]} 54. Rb5 {[%emt 0:00:39]} R4xa5 {[%emt 0:00:09]} 55. Rb8 {[%emt 0:00:13]} Rd7 {[%emt 0:01:17]} 56. Rc2 {[%emt 0:00:02]} Rad5 {[%emt 0:00:11]} 57. Kh3 {[%emt 0:00:33]} Rd2 {[%emt 0:00:56]} 58. Rcc8 {[%emt 0:00:14]} Kf6 {[%emt 0:01:08]} 59. b4 {[%emt 0:00:14]} g5 {[%emt 0:00:10]} 0-1

[Event "360 One Wealth GP-3 2024"]
[Site "Mumbai"]
[Date "2024.02.06"]
[Round "2.3"]
[White "Bartakke, Amardeep S."]
[Black "Sawant Sanskruti"]
[Result "1-0"]
[ECO "B07"]
[WhiteElo "1961"]
[BlackElo "1189"]
[Annotator "NA RC"]
[PlyCount "57"]
[EventDate "2024.02.04"]
[EventType "swiss"]
[EventCountry "IND"]
[SourceTitle "playchess.com"]
[Source "ChessBase"]
[SourceQuality "1"]
[TimeControl "5400+30"]

1. e4 {[%emt 0:02:40]} d6 {[%emt 0:13:27]} 2. d4 {[%emt 0:00:08]} Nf6 {[%emt 0:00:12]} 3. Nc3 {[%emt 0:00:10]} Nbd7 {[%emt 0:01:17]} 4. f4 {[%emt 0:00:11]} e5 {[%emt 0:00:19]} 5. Nf3 {[%emt 0:00:03]} exd4 {[%emt 0:00:21]} 6. Qxd4 {[%emt 0:00:09]} Be7 {[%emt 0:00:29]} 7. Be3 {[%emt 0:01:02]} O-O {[%emt 0:00:30]} 8. O-O-O {[%emt 0:02:06]} c6 {[%emt 0:01:22]} 9. Qd2 {[%emt 0:01:03]} Qc7 {[%emt 0:01:55]} 10. h3 {[%emt 0:02:23]} b5 {[%emt 0:01:16]} 11. Bd3 {[%emt 0:10:54]} a5 {[%emt 0:04:39]} 12. g4 {[%emt 0:02:00]} Nc5 {[%emt 0:03:29]} 13. Bxc5 {[%emt 0:06:17]} dxc5 {[%emt 0:00:13]} 14. e5 {[%emt 0:00:11]} Nd7 {[%emt 0:00:54]} 15. Be4 {[%emt 0:00:35]} Rb8 {[%emt 0:01:29]} 16. h4 {[%emt 0:05:10]} c4 {[%emt 0:01:59]} 17. Nd4 {[%emt 0:02:00]} Bb7 {[%emt 0:03:38]} 18. Ndxb5 {[%emt 0:03:16]} cxb5 {[%emt 0:01:48]} 19. Qxd7 {[%emt 0:00:10]} Qxd7 {[%emt 0:00:10]} 20. Rxd7 {[%emt 0:00:19]} Bxe4 {[%emt 0:00:19]} 21. Nxe4 {[%emt 0:00:18]} Bd8 {[%emt 0:00:28]} 22. Kd2 {[%emt 0:03:31]} Bb6 {[%emt 0:01:03]} 23. Ke2 {[%emt 0:00:13]} Rfd8 {[%emt 0:02:21]} 24. Rhd1 {[%emt 0:00:10]} Kf8 {[%emt 0:00:52]} 25. e6 {[%emt 0:13:43]} fxe6 {[%emt 0:00:02]} 26. Ng5 {[%emt 0:00:01]} Rxd7 {[%emt 0:00:08]} 27. Rxd7 {[%emt 0:00:07]} Bd8 {[%emt 0:00:06]} 28. Nxe6+ {[%emt 0:00:04]} Ke8 29. Rxg7 {[%emt 0:00:02]} 1-0

[Event "360 One Wealth GP-3 2024"]
[Site "Mumbai"]
[Date "2024.02.06"]
[Round "2.4"]
[White "Palaash Suyog Mapara"]
[Black "Rachit H Gurnani"]
[Result "0-1"]
[ECO "C50"]
[WhiteElo "1165"]
[BlackElo "1720"]
[Annotator "NA RC"]
[PlyCount "206"]
[EventDate "2024.02.04"]
[EventType "swiss"]
[EventCountry "IND"]
[SourceTitle "playchess.com"]
[Source "ChessBase"]
[SourceQuality "1"]
[TimeControl "5400+30"]

1. e4 {[%emt 0:00:03]} e5 {[%emt 0:01:06]} 2. Nf3 {[%emt 0:00:10]} Nc6 {[%emt 0:00:02]} 3. Bc4 {[%emt 0:00:14]} Bc5 {[%emt 0:00:16]} 4. d3 {[%emt 0:00:13]} Nf6 {[%emt 0:00:19]} 5. h3 {[%emt 0:00:54]} d6 {[%emt 0:00:07]} 6. Be3 {[%emt 0:02:08]} Bb6 {[%emt 0:03:04]} 7. O-O {[%emt 0:00:13]} h6 {[%emt 0:00:20]} 8. Nc3 {[%emt 0:02:09]} O-O {[%emt 0:05:59]} 9. d4 {[%emt 0:07:51]} Bd7 {[%emt 0:08:01]} 10. dxe5 {[%emt 0:04:47]} Nxe5 {[%emt 0:01:42]} 11. Nxe5 {[%emt 0:00:13]} dxe5 {[%emt 0:00:02]} 12. Bxb6 {[%emt 0:00:59]} axb6 {[%emt 0:00:02]} 13. Re1 {[%emt 0:00:20]} c6 {[%emt 0:04:36]} 14. a3 {[%emt 0:11:08]} Qe7 {[%emt 0:00:23]} 15. Qe2 {[%emt 0:00:29]} g6 {[%emt 0:05:43]} 16. Qe3 {[%emt 0:03:39]} b5 {[%emt 0:00:10]} 17. Bb3 {[%emt 0:01:14]} Kg7 {[%emt 0:00:48]} 18. Rad1 {[%emt 0:04:22]} b4 {[%emt 0:05:59]} 19. axb4 {[%emt 0:06:23]} Qxb4 {[%emt 0:00:02]} 20. Na2 {[%emt 0:02:04]} Qe7 {[%emt 0:03:19]} 21. Nc3 {[%emt 0:00:36]} Nh5 {[%emt 0:09:26]} 22. Ne2 {[%emt 0:07:59]} Rae8 {[%emt 0:03:07]} 23. Ng3 {[%emt 0:16:09]} Nf4 {[%emt 0:00:21]} 24. Ne2 {[%emt 0:00:13]} Nh5 {[%emt 0:02:07]} 25. Ng3 {[%emt 0:00:19]} Nf6 {[%emt 0:00:02]} 26. Rd2 {[%emt 0:05:01]} Bc8 {[%emt 0:03:20]} 27. Bc4 {[%emt 0:04:46]} Nd7 {[%emt 0:01:54]} 28. Rde2 {[%emt 0:03:08]} Qb4 {[%emt 0:04:29]} 29. Qc3 {[%emt 0:06:37]} Qxc3 {[%emt 0:04:20]} 30. bxc3 {[%emt 0:00:02]} b5 {[%emt 0:00:35]} 31. Bb3 {[%emt 0:00:40]} Nb6 {[%emt 0:01:05]} 32. Rd2 {[%emt 0:04:23]} Re7 {[%emt 0:04:15]} 33. Red1 {[%emt 0:03:32]} Rc7 {[%emt 0:02:21]} 34. Rd8 {[%emt 0:01:03]} Bb7 {[%emt 0:00:30]} 35. Rxf8 {[%emt 0:00:05]} Kxf8 {[%emt 0:00:01]} 36. f3 {[%emt 0:01:24]} c5 {[%emt 0:01:16]} 37. Bd5 {[%emt 0:00:12]} Rd7 {[%emt 0:00:23]} 38. Rb1 {[%emt 0:01:12]} Bxd5 {[%emt 0:08:11]} 39. exd5 {[%emt 0:00:01]} b4 {[%emt 0:00:01]} 40. cxb4 {[%emt 0:00:24]} cxb4 {[%emt 0:00:22]} 41. Rxb4 {[%emt 0:00:01]} Nxd5 {[%emt 0:00:00]} 42. Re4 {[%emt 0:02:17]} f6 {[%emt 0:00:17]} 43. Rc4 {[%emt 0:00:54]} Nf4 {[%emt 0:02:12]} 44. Nf1 {[%emt 0:00:59]} Ke7 {[%emt 0:02:23]} 45. Kf2 {[%emt 0:00:29]} h5 {[%emt 0:00:40]} 46. Rc5 {[%emt 0:00:26]} h4 {[%emt 0:00:58]} 47. Rc8 {[%emt 0:00:25]} Rd5 {[%emt 0:01:19]} 48. Rc7+ {[%emt 0:00:19]} Kd6 {[%emt 0:00:49]} 49. Rc8 {[%emt 0:00:18]} Kd7 {[%emt 0:00:29]} 50. Rc3 {[%emt 0:00:52]} Rd1 {[%emt 0:00:26]} 51. Rc4 {[%emt 0:00:50]} g5 {[%emt 0:00:25]} 52. Rc3 {[%emt 0:00:11]} Ke6 {[%emt 0:01:36]} 53. Rc8 {[%emt 0:00:24]} Ra1 {[%emt 0:01:13]} 54. Rc6+ {[%emt 0:00:13]} Kf7 {[%emt 0:00:12]} 55. Rc7+ {[%emt 0:00:10]} Kg6 {[%emt 0:00:10]} 56. Rc6 {[%emt 0:00:29]} Nh5 {[%emt 0:03:31]} 57. Rc3 {[%emt 0:00:24]} Ra6 {[%emt 0:02:10]} 58. Rc8 {[%emt 0:00:22]} Rd6 {[%emt 0:00:20]} 59. Rc3 {[%emt 0:00:48]} f5 {[%emt 0:00:29]} 60. Rc5 {[%emt 0:00:44]} Kf6 {[%emt 0:00:26]} 61. Rc8 {[%emt 0:00:37]} f4 {[%emt 0:01:37]} 62. Rc4 {[%emt 0:00:16]} Kf5 {[%emt 0:01:42]} 63. Rc3 {[%emt 0:00:21]} Ra6 {[%emt 0:03:25]} 64. Rc8 {[%emt 0:00:29]} Ra1 {[%emt 0:00:52]} 65. Rf8+ {[%emt 0:00:49]} Kg6 {[%emt 0:00:08]} 66. Rc8 {[%emt 0:00:08]} Ng3 {[%emt 0:00:47]} 67. Nxg3 {[%emt 0:01:03]} hxg3+ {[%emt 0:00:06]} 68. Ke2 {[%emt 0:00:17]} Rg1 {[%emt 0:00:02]} 69. Rg8+ {[%emt 0:00:49]} Kf6 {[%emt 0:00:15]} 70. Rf8+ {[%emt 0:00:58]} Kg7 {[%emt 0:00:40]} 71. Rf5 {[%emt 0:00:13]} Rxg2+ {[%emt 0:00:02]} 72. Kf1 {[%emt 0:00:00]} Rf2+ {[%emt 0:00:11]} 73. Kg1 {[%emt 0:00:13]} Kg6 {[%emt 0:00:39]} 74. Rxe5 {[%emt 0:00:14]} Rxc2 {[%emt 0:00:02]} 75. Re6+ {[%emt 0:01:01]} Kf5 {[%emt 0:00:08]} 76. Ra6 {[%emt 0:00:15]} Ke5 {[%emt 0:01:29]} 77. Ra5+ {[%emt 0:00:44]} Kd4 {[%emt 0:00:12]} 78. Ra4+ {[%emt 0:00:49]} Ke3 {[%emt 0:01:46]} 79. Ra3+ {[%emt 0:00:11]} Ke2 {[%emt 0:00:02]} 80. Kg2 {[%emt 0:00:49]} Rd2 {[%emt 0:00:01]} 81. Rb3 {[%emt 0:00:22]} Ke1+ {[%emt 0:00:51]} 82. Kg1 {[%emt 0:00:06]} Rf2 {[%emt 0:00:08]} 83. Rb1+ {[%emt 0:00:14]} Ke2 {[%emt 0:00:14]} 84. Rb2+ {[%emt 0:01:06]} Kxf3 {[%emt 0:00:03]} 85. Rb3+ {[%emt 0:00:16]} Ke4 {[%emt 0:00:15]} 86. Rb4+ {[%emt 0:00:13]} Kf5 {[%emt 0:00:05]} 87. Rb5+ {[%emt 0:00:09]} Kg6 {[%emt 0:00:01]} 88. Rb6+ {[%emt 0:00:06]} Kh5 {[%emt 0:00:06]} 89. Rb8 {[%emt 0:00:35]} Ra2 {[%emt 0:00:07]} 90. Rh8+ {[%emt 0:00:18]} Kg6 {[%emt 0:00:02]} 91. Rf8 {[%emt 0:00:30]} Rh2 {[%emt 0:01:17]} 92. Rg8+ {[%emt 0:02:22]} Kf5 {[%emt 0:00:09]} 93. Re8 {[%emt 0:00:29]} Rxh3 {[%emt 0:00:10]} 94. Kg2 {[%emt 0:00:18]} Rh2+ {[%emt 0:00:03]} 95. Kg1 {[%emt 0:00:05]} Ra2 {[%emt 0:00:10]} 96. Rb8 {[%emt 0:00:21]} Kg4 {[%emt 0:00:11]} 97. Rb1 {[%emt 0:00:13]} Kh3 {[%emt 0:00:31]} 98. Rf1 {[%emt 0:00:15]} Rg2+ {[%emt 0:00:09]} 99. Kh1 {[%emt 0:00:10]} Rh2+ {[%emt 0:00:01]} 100. Kg1 {[%emt 0:00:14]} Rh1+ {[%emt 0:00:01]} 101. Kxh1 {[%emt 0:00:10]} g2+ {[%emt 0:00:01]} 102. Kg1 {[%emt 0:00:02]} gxf1=Q+ {[%emt 0:00:10]} 103. Kxf1 {[%emt 0:00:04]} Kh2 {[%emt 0:00:07]} 0-1

[Event "360 One Wealth GP-3 2024"]
[Site "Mumbai"]
[Date "2024.02.06"]
[Round "2.5"]
[White "Vihaan Ravi Rao"]
[Black "Arnav Mahesh Koli"]
[Result "0-1"]
[ECO "A36"]
[WhiteElo "1184"]
[BlackElo "1755"]
[Annotator "NA RC"]
[PlyCount "99"]
[EventDate "2024.02.04"]
[EventType "swiss"]
[EventCountry "IND"]
[SourceTitle "playchess.com"]
[Source "ChessBase"]
[SourceQuality "1"]
[TimeControl "5400+30"]

1. e4 {[%emt 0:00:04]} c5 {[%emt 0:00:01]} 2. c4 {[%emt 0:00:13]} Nc6 {[%emt 0:00:28]} 3. Nc3 {[%emt 0:00:08]} g6 {[%emt 0:00:31]} 4. g3 {[%emt 0:00:14]} Bg7 {[%emt 0:00:36]} 5. Bg2 {[%emt 0:00:13]} d6 {[%emt 0:00:33]} 6. d3 {[%emt 0:00:59]} a6 {[%emt 0:00:10]} 7. Nge2 {[%emt 0:00:21]} Rb8 {[%emt 0:01:25]} 8. a4 {[%emt 0:00:29]} h5 {[%emt 0:04:19]} 9. O-O {[%emt 0:01:32]} h4 {[%emt 0:01:02]} 10. Be3 {[%emt 0:02:15]} e5 {[%emt 0:03:12]} 11. Nd5 {[%emt 0:03:13]} Nh6 {[%emt 0:05:56]} 12. Nec3 {[%emt 0:07:53]} Ng4 {[%emt 0:01:46]} 13. f4 {[%emt 0:05:18]} Nxh2 {[%emt 0:01:16]} 14. Kxh2 {[%emt 0:08:33]} hxg3+ {[%emt 0:00:06]} 15. Kg1 {[%emt 0:01:04]} Qh4 {[%emt 0:00:30]} 16. Re1 {[%emt 0:01:38]} Qh2+ {[%emt 0:00:05]} 17. Kf1 {[%emt 0:00:17]} Bh3 {[%emt 0:00:31]} 18. Qf3 {[%emt 0:09:42]} Qh1+ {[%emt 0:00:50]} 19. Ke2 {[%emt 0:02:16]} Qxg2+ {[%emt 0:00:09]} 20. Qxg2 {[%emt 0:00:18]} Bxg2 {[%emt 0:00:02]} 21. Rg1 {[%emt 0:08:16]} Rh2 {[%emt 0:00:50]} 22. Ke1 {[%emt 0:02:53]} exf4 {[%emt 0:05:05]} 23. Nxf4 {[%emt 0:04:06]} Nb4 {[%emt 0:00:02]} 24. Rc1 {[%emt 0:04:31]} Bh1 {[%emt 0:02:04]} 25. Ncd5 {[%emt 0:05:23]} g5 {[%emt 0:02:42]} 26. Nxb4 {[%emt 0:01:29]} gxf4 {[%emt 0:00:41]} 27. Bxf4 {[%emt 0:00:39]} cxb4 {[%emt 0:00:33]} 28. Bxg3 {[%emt 0:00:18]} Rg2 {[%emt 0:00:32]} 29. Rxg2 {[%emt 0:02:52]} Bxg2 {[%emt 0:00:02]} 30. Rc2 {[%emt 0:01:01]} Bh3 {[%emt 0:00:15]} 31. Bxd6 {[%emt 0:00:28]} Rd8 {[%emt 0:00:13]} 32. e5 {[%emt 0:02:18]} Kd7 {[%emt 0:02:06]} 33. Rh2 {[%emt 0:02:18]} Bf5 {[%emt 0:01:00]} 34. d4 {[%emt 0:00:52]} b3 {[%emt 0:01:21]} 35. Rf2 {[%emt 0:00:57]} Bg6 {[%emt 0:00:57]} 36. Rf3 {[%emt 0:01:22]} Rc8 {[%emt 0:00:16]} 37. c5 {[%emt 0:03:36]} b5 {[%emt 0:02:36]} 38. axb5 {[%emt 0:00:51]} axb5 {[%emt 0:00:00]} 39. Rxb3 {[%emt 0:00:26]} Kc6 {[%emt 0:03:56]} 40. Rg3 {[%emt 0:04:45]} Kd5 {[%emt 0:00:50]} 41. Rg4 {[%emt 0:00:52]} Rh8 {[%emt 0:01:34]} 42. Kd2 {[%emt 0:01:39]} b4 {[%emt 0:00:00]} 43. e6 {[%emt 0:04:54]} Kxe6 {[%emt 0:00:00]} 44. d5+ {[%emt 0:00:44]} Kxd5 {[%emt 0:00:00]} 45. Rxb4 {[%emt 0:00:22]} Bd4 {[%emt 0:00:00]} 46. Be7 {[%emt 0:01:44]} Rh2+ {[%emt 0:00:00]} 47. Ke1 {[%emt 0:01:27]} Bd3 {[%emt 0:00:00]} 48. Bf8 {[%emt 0:01:02]} Be3 {[%emt 0:00:00]} 49. Rd4+ {[%emt 0:03:04]} Kxd4 {[%emt 0:00:00]} 50. Bg7+ {[%emt 0:00:07]} 0-1